bitfinex-derivatives/quotes_ETHF0:USTF0_20210110
["timestamp","ask_amount","ask_price","bid_price","bid_amount"]
[1610294264885,21.90289,1306.2,1306.1,10.0]
[1610294265486,20.34979,1306.2,1306.1,10.0]
[1610294266087,39.80251874,1306.2,1306.1,10.0]
[1610294266490,20.34979,1306.2,1306.1,10.0]
[1610294266894,21.87669,1306.2,1306.1,10.0]
[1610294267292,20.34979,1306.2,1306.1,10.0]
[1610294272001,38.842187,1306.2,1306.1,10.0]
[1610294272705,20.34979,1306.2,1306.1,10.0]
[1610294273706,38.84729423,1306.2,1306.1,10.0]
[1610294274506,20.34979,1306.2,1306.1,10.0]
[1610294275309,21.90229,1306.2,1306.1,10.0]
[1610294276508,20.34979,1306.2,1306.1,10.0]
[1610294277507,21.88249,1306.2,1306.1,10.0]
[1610294281009,20.34979,1306.2,1306.1,10.0]
[1610294281910,21.88009,1306.2,1306.1,10.0]
[1610294282511,20.34979,1306.2,1306.1,10.0]
[1610294283510,21.88959,1306.2,1306.1,10.0]
[1610294286413,20.34979,1306.2,1306.1,10.0]
[1610294312543,38.89680064,1306.2,1306.1,14.00959]
[1610294312943,38.89680064,1306.2,1306.1,10.0]
[1610294314246,20.34979,1306.2,1306.1,10.0]
[1610294319657,16.3402,1306.2,1306.1,10.0]
[1610294320455,12.6604,1306.2,1306.1,10.0]
[1610294320656,30.35662644,1306.2,1306.1,10.0]
[1610294321458,12.6604,1306.2,1306.1,12.5072]
[1610294321960,1.2813,1306.2,1306.1,12.5072]
[1610294322861,1.2813,1306.2,1306.1,42.5072]
[1610294323060,17.68400511,1306.5,1306.1,42.5072]
[1610294323261,82.01870225,1306.6,1306.2,10.0]
[1610294323663,82.01870225,1306.6,1306.3,10.0]
[1610294324066,64.3345,1306.6,1306.2,10.0]
[1610294324264,64.3345,1306.6,1306.4,10.0]
[1610294324465,64.3345,1306.6,1306.5,4.00959]
[1610294325067,64.3345,1306.6,1306.5,14.00959]
[1610294325667,52.5528,1306.6,1306.5,14.00959]
[1610294325868,17.69885038,1306.9,1306.6,55.2859]
[1610294326068,17.69476648,1307.0,1306.6,65.2859]
[1610294326468,17.69476648,1307.0,1306.9,4.00959]
[1610294326868,18.62071709,1307.3,1306.9,4.00959]
[1610294327068,18.62071709,1307.3,1306.9,14.00959]
[1610294327270,18.62071709,1307.3,1307.0,10.0]
[1610294327669,18.62071709,1307.3,1307.1,10.0]
[1610294327869,18.61901724,1307.2,1307.1,10.0]
[1610294328068,18.61901724,1307.2,1307.0,10.0]
[1610294328469,18.61930936,1307.1,1306.9,4.00959]
[1610294328869,18.61930936,1307.1,1307.0,10.0]
[1610294329772,18.62417478,1307.2,1307.0,10.0]
[1610294330170,18.62417478,1307.2,1307.1,10.0]
[1610294330571,18.62417478,1307.2,1307.1,4.00959]
[1610294330771,18.62417478,1307.2,1307.1,14.00959]
[1610294331271,18.64530777,1307.3,1307.1,14.00959]
[1610294331671,18.64530777,1307.3,1307.2,10.0]
[1610294332272,18.64530777,1307.3,1307.1,4.00959]
[1610294332472,5.78589,1307.5,1307.1,4.00959]
[1610294332671,5.78589,1307.5,1306.7,2.4716]
[1610294332672,18.64330117,1307.2,1306.7,2.4716]
[1610294332870,18.64330117,1307.2,1306.6,55.2859]
[1610294333072,18.64274325,1307.1,1306.8,10.0]
[1610294333272,18.64274325,1307.1,1306.7,10.0]
[1610294333572,18.64592075,1307.2,1306.9,10.0]
[1610294333873,18.64592075,1307.2,1306.7,10.0]
[1610294334273,18.64592075,1307.2,1307.0,10.0]
[1610294334572,18.64592075,1307.2,1307.1,4.00959]
[1610294334973,18.64592075,1307.2,1307.1,14.00959]
[1610294335576,18.66006358,1307.3,1307.1,14.00959]
[1610294335876,18.66006358,1307.3,1307.2,10.0]
[1610294336279,18.66118005,1307.4,1307.2,10.0]
[1610294336676,18.66118005,1307.4,1306.7,2.2095]
[1610294336677,20.44593352,1307.5,1307.3,14.00959]
[1610294336977,18.67579166,1307.6,1307.3,4.00959]
[1610294337380,18.68455579,1307.7,1307.3,4.00959]
[1610294337577,57.2568,1308.0,1307.4,10.0]
[1610294337578,18.6918079,1307.8,1307.4,10.0]
[1610294337978,18.6918079,1307.8,1307.5,10.0]
[1610294338178,18.6918079,1307.8,1307.3,4.00959]
[1610294338377,1.881,1307.8,1307.3,4.00959]
[1610294338577,1.881,1307.8,1307.7,4.00959]
[1610294339181,1.881,1307.8,1307.7,14.00959]
[1610294339381,18.702354,1308.0,1307.7,14.00959]
[1610294339583,18.71673549,1308.1,1307.8,10.0]
[1610294339884,18.72106101,1308.2,1307.8,10.0]
[1610294340082,18.72106101,1308.2,1307.9,10.0]
[1610294340284,18.72822139,1308.3,1307.9,10.0]
[1610294340483,18.72822139,1308.3,1307.8,10.0]
[1610294340683,18.72822139,1308.3,1308.2,4.00959]
[1610294341487,59.0777,1308.7,1308.2,4.00959]
[1610294341488,18.73499284,1308.4,1308.2,14.00959]
[1610294341888,18.72814642,1308.3,1308.2,4.00959]
[1610294342088,18.72814642,1308.3,1307.6,2.0886]
[1610294342289,18.72814642,1308.3,1307.7,10.0]
[1610294342592,4.00959,1308.0,1307.7,14.00959]
[1610294342791,4.00959,1308.0,1307.8,10.0]
[1610294343390,4.00959,1308.0,1307.3,1.8978]
[1610294343391,18.69887543,1307.9,1307.3,1.8978]
[1610294343791,18.69887543,1307.9,1307.4,10.0]
[1610294344191,18.68779246,1307.8,1307.5,10.0]
[1610294344391,4.00959,1308.0,1307.5,10.0]
[1610294344392,18.68425259,1307.7,1307.5,10.0]
[1610294344592,4.00959,1307.6,1307.3,14.00959]
[1610294344991,4.00959,1307.6,1307.3,4.00959]
[1610294345192,22.68895143,1307.6,1307.4,10.0]
[1610294345591,22.68895143,1307.6,1307.3,10.0]
[1610294345791,18.66074344,1307.5,1307.3,10.0]
[1610294345991,18.65914337,1307.4,1307.3,10.0]
[1610294346393,4.00959,1307.6,1307.4,10.0]
[1610294346791,4.00959,1307.6,1307.3,10.0]
[1610294347192,4.00959,1307.6,1307.5,10.0]
[1610294347392,4.00959,1307.6,1307.4,10.0]
[1610294347795,4.00959,1307.6,1307.5,10.0]
[1610294347992,4.00959,1307.6,1306.5,4.00959]
[1610294348392,4.00959,1307.6,1307.3,10.0]
[1610294348794,6.43899,1307.4,1306.6,10.0]
[1610294348995,6.43899,1307.4,1306.1,2.0361]
[1610294349195,6.43899,1307.4,1307.3,10.0]
[1610294350398,7.97649,1307.4,1307.3,10.0]
[1610294350595,6.43899,1307.4,1307.3,10.0]
[1610294351597,7.96179,1307.4,1307.3,10.0]
[1610294352797,7.96179,1307.4,1307.3,14.00959]
[1610294353397,2.4294,1307.4,1307.3,14.00959]
[1610294353599,5.3301,1307.7,1307.3,14.00959]
[1610294353600,18.66935061,1307.6,1307.3,14.00959]
[1610294353798,24.00747938,1307.7,1307.3,14.00959]
[1610294353998,22.08237938,1307.7,1307.4,10.0]
[1610294354398,20.20507938,1307.7,1307.5,10.0]
[1610294354798,18.67737938,1307.7,1307.6,4.00959]
[1610294354998,18.67737938,1307.7,1307.6,10.0]
[1610294356500,4.00959,1307.9,1307.6,10.0]
[1610294356700,2.1585,1308.1,1307.7,10.0]
[1610294357299,19.57728083,1308.2,1307.1,10.0]
[1610294357501,19.56379094,1308.1,1307.1,10.0]
[1610294357701,21.07629094,1308.1,1307.2,10.0]
[1610294357900,18.63083075,1307.5,1307.2,10.0]
[1610294358103,18.63083075,1307.5,1307.1,10.0]
[1610294358300,18.62817506,1307.4,1307.3,10.0]
[1610294358800,22.63776506,1307.4,1307.1,4.00959]
[1610294359000,22.63776506,1307.4,1307.1,14.00959]
[1610294359400,4.00959,1307.4,1307.2,10.0]
[1610294359601,18.63481658,1307.3,1306.8,10.0]
[1610294359801,18.63481658,1307.3,1306.7,1.8922]
[1610294360001,4.00959,1307.4,1307.3,10.0]
[1610294360200,4.00959,1307.4,1306.8,10.0]
[1610294360605,4.00959,1307.4,1306.5,10.0]
[1610294360803,1.783,1307.6,1306.4,2.0042]
[1610294360804,4.00959,1306.6,1306.4,2.0042]
[1610294361204,4.00959,1306.6,1306.5,10.0]
[1610294361604,4.00959,1306.6,1306.4,10.0]
[1610294362005,4.00959,1306.6,1303.4,30.93964617]
[1610294362006,4.00959,1306.6,1306.5,10.0]
[1610294362404,4.00959,1306.6,1306.2,10.0]
[1610294362604,4.00959,1306.6,1303.7,10.0]
[1610294362805,4.00959,1305.7,1305.4,4.00959]
[1610294363408,4.00959,1305.7,1305.5,10.0]
[1610294363607,4.00959,1305.7,1305.6,10.0]
[1610294364008,4.00959,1305.7,1305.5,10.0]
[1610294364208,4.00959,1305.7,1305.4,4.00959]
[1610294364406,4.00959,1305.7,1305.6,10.0]
[1610294366607,2.3475,1306.2,1305.6,10.0]
[1610294366809,63.33039,1306.1,1305.9,4.00959]
[1610294367009,4.00959,1306.1,1305.9,4.00959]
[1610294367407,4.00959,1306.1,1306.0,10.0]
[1610294368009,2.3442,1306.8,1306.0,10.0]
[1610294368309,7.534,1307.3,1306.0,10.0]
[1610294368508,7.534,1307.3,1306.1,10.0]
[1610294368709,7.534,1307.3,1306.1,2.4256]
[1610294368909,4.00959,1306.5,1306.4,4.00959]
[1610294369508,7.534,1307.3,1306.4,14.00959]
[1610294370009,7.534,1307.3,1306.5,10.0]
[1610294370209,1.7883,1307.3,1306.6,10.0]
[1610294370411,5.9332,1308.3,1306.6,10.0]
[1610294370812,4.00959,1307.3,1307.1,4.00959]
[1610294371213,4.00959,1307.3,1307.2,10.0]
[1610294375618,34.00959,1307.3,1307.2,10.0]
[1610294376219,4.00959,1307.3,1307.2,10.0]
[1610294380020,34.00959,1307.3,1307.2,10.0]
[1610294380321,4.00959,1307.3,1307.2,10.0]
[1610294381022,6.31179,1307.3,1307.2,10.0]
[1610294381624,36.31179,1307.3,1307.2,10.0]
[1610294385027,6.31179,1307.3,1307.2,10.0]
[1610294385226,36.31179,1307.3,1307.2,10.0]
[1610294386629,50.31179,1307.3,1305.2,1.9441]
[1610294386830,50.31179,1307.3,1306.9,10.0]
[1610294387029,4.00959,1307.0,1306.9,10.0]
[1610294387230,34.00959,1307.0,1306.9,10.0]
[1610294387929,4.00959,1307.0,1306.9,10.0]
[1610294388130,5.66969,1307.0,1306.9,10.0]
[1610294388930,7.20719,1307.0,1306.9,10.0]
[1610294389130,25.66969,1307.0,1306.9,10.0]
[1610294389333,27.68099,1307.0,1306.9,10.0]
[1610294389531,2.0113,1307.0,1306.9,10.0]
[1610294389730,2.0113,1307.0,1305.8,63.9711]
[1610294390134,2.0113,1307.0,1305.9,10.0]
[1610294390331,32.0113,1307.0,1305.9,10.0]
[1610294390532,3.5309,1307.0,1305.8,63.9711]
[1610294390731,3.5309,1307.0,1306.0,10.0]
[1610294390932,4.00959,1306.1,1306.0,10.0]
[1610294391133,4.00959,1306.1,1305.8,63.9711]
[1610294391333,5.66979,1306.1,1305.8,63.9711]
[1610294391535,5.66979,1306.1,1306.0,10.0]
[1610294391935,5.66979,1306.1,1305.8,63.9711]
[1610294392335,7.18169,1306.1,1306.0,10.0]
[1610294392734,1.6602,1306.1,1305.8,63.9711]
[1610294392934,1.6602,1306.1,1306.0,14.00959]
[1610294393134,3.1704,1306.1,1306.0,14.00959]
[1610294393333,1.5102,1306.1,1306.0,4.00959]
[1610294393734,1.5102,1306.1,1306.0,10.0]
[1610294394434,5.7471,1306.9,1306.0,10.0]
[1610294394835,35.7471,1306.9,1306.1,10.0]
[1610294395035,4.00959,1306.2,1306.1,10.0]
[1610294395235,6.27859,1306.2,1305.9,10.0]
[1610294395637,6.27859,1306.2,1305.3,10.0]
[1610294396038,6.27859,1306.2,1306.0,10.0]
[1610294396441,6.27859,1306.2,1305.3,10.0]
[1610294396842,6.27859,1306.2,1306.1,10.0]
[1610294397443,6.27859,1306.2,1304.9,1.9405]
[1610294397644,6.27859,1306.2,1305.0,10.0]
[1610294398146,6.27859,1306.2,1304.7,10.0]
[1610294398346,6.27859,1306.2,1304.8,10.0]
[1610294398749,6.27859,1306.2,1304.7,10.0]
[1610294398946,4.00959,1304.8,1304.7,10.0]
[1610294399146,4.00959,1304.8,1304.3,1.5608]
[1610294399347,4.00959,1304.8,1304.4,10.0]
[1610294399648,4.00959,1304.8,1304.3,1.5608]
[1610294399851,4.00959,1304.8,1304.5,10.0]
[1610294400248,4.00959,1304.8,1304.4,10.0]
[1610294401048,4.00959,1304.5,1304.4,10.0]
[1610294401248,1.5878,1305.0,1304.4,10.0]
[1610294402351,1.6904,1305.3,1304.4,10.0]
[1610294402749,2.269,1306.2,1304.4,10.0]
[1610294402949,4.00959,1305.5,1305.4,4.00959]
[1610294403552,1.7311,1305.9,1305.4,4.00959]
[1610294404553,5.4163,1307.0,1305.4,6.13879]
[1610294405153,4.00959,1306.7,1306.5,4.00959]
[1610294405352,5.87729,1306.7,1306.5,4.00959]
[1610294405553,5.87729,1306.7,1305.4,2.1292]
[1610294407055,5.87729,1306.7,1306.5,4.00959]
[1610294407456,1.8677,1306.7,1305.4,2.1292]
[1610294408254,1.8677,1306.7,1305.5,10.0]
[1610294408857,1.5098,1306.8,1305.6,10.0]
[1610294409055,2.0113,1307.0,1306.7,4.00959]
[1610294409255,4.00959,1307.2,1306.7,4.00959]
[1610294409655,7.3202,1307.6,1306.7,14.00959]
[1610294409957,7.3202,1307.6,1306.7,4.00959]
[1610294410355,7.3202,1307.6,1306.7,2.45739]
[1610294411157,4.00959,1307.4,1307.2,4.00959]
[1610294411356,1.5147,1307.6,1307.2,4.00959]
[1610294412156,1.5147,1307.6,1306.4,1.7668]
[1610294412358,3.6042,1307.6,1306.4,1.7668]
[1610294413060,3.6042,1307.6,1306.9,4.00959]
[1610294415160,18.00959,1307.3,1306.9,4.00959]
[1610294415562,14.0,1307.3,1306.9,4.00959]
[1610294417165,14.0,1307.3,1307.2,4.00959]
[1610294417966,14.0,1307.3,1307.2,6.45379]
[1610294420471,14.0,1307.3,1307.2,16.45379]
[1610294420871,14.0,1307.3,1307.2,6.45379]
[1610294421270,14.0,1307.3,1307.2,16.45379]
[1610294422074,4.1957,1307.3,1307.2,46.45379]
[1610294422471,1.5357,1308.3,1307.2,46.45379]
[1610294422873,1.5357,1308.3,1307.3,10.0]
[1610294423073,1.5357,1308.3,1308.2,4.00959]
[1610294423276,1.5357,1308.3,1308.2,6.31889]
[1610294424473,1.5357,1308.3,1308.2,16.31889]
[1610294425075,1.5357,1308.3,1308.2,6.31889]
[1610294428378,21.253755,1308.7,1308.2,6.31889]
[1610294428577,19.713555,1308.7,1308.2,6.31889]
[1610294428776,19.713555,1308.7,1308.2,36.31889]
[1610294428977,19.709331,1308.8,1308.2,6.31889]
[1610294429176,19.709331,1308.8,1308.7,4.00959]
[1610294429377,21.219304,1309.1,1308.7,4.00959]
[1610294429577,19.7103038,1309.0,1308.7,4.00959]
[1610294429977,1.5101,1309.1,1308.7,4.00959]
[1610294429978,19.7103051,1308.9,1308.7,4.00959]
[1610294430578,19.7128454,1308.8,1308.7,0.82779]
[1610294430778,1.5101,1309.1,1308.5,2.4784]
[1610294430979,1.5101,1309.1,1308.2,2.3093]
[1610294431178,23.7248804,1308.6,1308.4,1.61049]
[1610294431378,25.2327804,1308.6,1308.4,1.61049]
[1610294431579,19.7174154,1308.5,1307.1,10.0]
[1610294431979,19.7174154,1308.5,1306.7,1.8833]
[1610294431980,5.51749,1308.6,1306.7,1.8833]
[1610294432181,7.50509,1308.6,1304.6,0.2347071]
[1610294432380,18.7832437,1307.5,1306.7,1.5102]
[1610294432579,20.3230437,1307.5,1306.7,1.5102]
[1610294432781,18.7847047,1307.3,1306.7,1.5102]
[1610294432981,18.7873291,1307.2,1306.7,1.5102]
[1610294433380,1.5398,1307.5,1305.3,30.0]
[1610294433381,18.7892205,1307.1,1305.3,30.0]
[1610294433583,18.7905878,1307.0,1305.3,30.0]
[1610294433985,18.7905767,1306.9,1305.3,30.0]
[1610294434182,18.7905767,1306.9,1305.4,10.0]
[1610294434383,18.7914895,1306.9,1305.4,10.0]
[1610294434584,18.7914895,1306.9,1305.5,10.0]
[1610294434786,18.7943235,1306.6,1305.5,2.3966]
[1610294435185,22.8039135,1306.6,1306.5,4.00959]
[1610294435384,18.7943235,1306.6,1306.5,4.00959]
[1610294435785,1.5102,1307.1,1306.5,4.00959]
[1610294435990,18.7945644,1306.6,1306.5,4.00959]
[1610294436488,18.7935324,1306.7,1306.5,4.00959]
[1610294436689,18.7912436,1306.8,1306.5,35.93099]
[1610294437091,1.5102,1307.1,1306.5,35.93099]
[1610294437092,20.2977899,1307.1,1306.7,4.00959]
[1610294437293,1.5102,1307.1,1306.7,4.00959]
[1610294437791,1.5102,1307.1,1306.7,34.00959]
[1610294437994,1.5102,1307.1,1306.7,3.68959]
[1610294439096,20.2977884,1307.1,1307.0,4.00959]
[1610294439495,20.2977884,1307.1,1306.5,1.9214]
[1610294439698,18.7913917,1306.8,1306.5,1.9214]
[1610294440198,18.7902788,1306.9,1306.5,1.9214]
[1610294440399,1.5102,1307.1,1306.5,1.9214]
[1610294440400,18.7898856,1307.0,1306.5,1.9214]
[1610294441200,18.7871917,1307.1,1306.9,4.00959]
[1610294441403,18.7871917,1307.1,1306.9,34.00959]
[1610294441600,10.0,1307.4,1306.9,34.00959]
[1610294441601,18.7844433,1307.2,1306.9,34.00959]
[1610294441800,10.0,1307.4,1306.9,4.00959]
[1610294442601,10.0,1307.4,1307.0,10.0]
[1610294442801,28.7843197,1307.4,1307.0,10.0]
[1610294443002,18.7849203,1307.3,1307.0,10.0]
[1610294443202,18.7849203,1307.3,1307.2,4.00959]
[1610294444301,28.7848389,1307.4,1307.2,4.00959]
[1610294444702,18.7846877,1307.3,1307.2,4.00959]
[1610294444902,28.7845785,1307.4,1307.3,10.0]
[1610294445302,10.0,1307.4,1307.2,4.00959]
[1610294445902,10.0,1307.4,1307.3,10.0]
[1610294446203,28.7842594,1307.4,1307.3,10.0]
[1610294446401,28.7842594,1307.4,1307.2,4.00959]
[1610294446902,10.0,1307.4,1307.2,4.00959]
[1610294447503,10.0,1307.4,1307.3,10.0]
[1610294447903,10.0,1307.4,1307.3,11.594]
[1610294448304,10.0,1307.4,1307.3,1.594]
[1610294448704,18.7766628,1307.9,1307.3,1.594]
[1610294448903,18.7766628,1307.9,1307.4,10.0]
[1610294449107,18.7704834,1308.4,1307.8,4.00959]
[1610294449307,18.7693572,1308.5,1307.8,34.00959]
[1610294449505,18.7693572,1308.5,1307.8,5.59259]
[1610294449706,20.2754719,1308.6,1307.9,10.0]
[1610294450107,20.2754719,1308.6,1307.8,5.59259]
[1610294450306,1.5079,1308.6,1307.8,5.59259]
[1610294450508,18.7694767,1308.5,1307.9,10.0]
[1610294450708,18.7703194,1308.4,1307.9,10.0]
[1610294451110,18.7705114,1308.2,1308.1,4.00959]
[1610294451310,1.5171,1308.2,1308.1,4.00959]
[1610294452308,1.5171,1308.2,1308.1,14.00959]
[1610294452511,1.5079,1308.6,1308.1,14.00959]
[1610294452711,1.5079,1308.6,1308.2,10.0]
[1610294453110,18.767595,1308.4,1308.3,10.0]
[1610294453311,18.7668899,1308.5,1308.3,10.0]
[1610294453511,18.7668899,1308.5,1308.2,10.0]
[1610294453912,18.7668899,1308.5,1308.4,10.0]
[1610294454113,18.7668899,1308.5,1308.3,1.7192]
[1610294454513,18.7666127,1308.4,1308.3,1.7192]
[1610294455114,22.7762027,1308.4,1308.3,1.7192]
[1610294455315,22.7762027,1308.4,1308.0,1.7226]
[1610294455316,4.00959,1308.4,1308.0,1.7226]
[1610294455514,18.7712514,1308.1,1307.7,2.2837]
[1610294455714,20.3007514,1308.1,1307.7,2.2837]
[1610294456115,20.3007514,1308.1,1307.3,1.594]
[1610294456317,1.5295,1308.1,1306.6,10.0]
[1610294456516,18.7783918,1307.6,1306.6,10.0]
[1610294456717,20.3208918,1307.6,1306.6,10.0]
[1610294456921,18.778354,1307.5,1306.6,10.0]
[1610294457117,20.299754,1307.5,1307.4,4.00959]
[1610294457317,1.5214,1307.5,1307.4,4.00959]
[1610294457525,20.3003147,1307.5,1307.4,4.00959]
[1610294458021,18.7789147,1307.5,1307.4,4.00959]
[1610294459123,22.7885047,1307.5,1307.4,4.00959]
[1610294459525,22.7885047,1307.5,1307.3,1.7526]
[1610294459724,4.00959,1307.5,1307.3,1.7526]
[1610294459924,4.00959,1307.5,1307.0,1.5562]
[1610294460124,4.00959,1307.5,1306.1,10.0]
[1610294460324,18.7878578,1307.0,1306.1,10.0]
[1610294460724,18.7878578,1307.0,1304.4,30.0]
[1610294460725,18.788705,1306.8,1305.7,10.0]
[1610294461124,18.7911263,1306.7,1306.2,4.00959]
[1610294461327,18.7913602,1306.5,1306.2,4.00959]
[1610294461525,18.7913602,1306.5,1306.2,6.37319]
[1610294461725,18.7913602,1306.5,1306.2,2.3636]
[1610294461925,18.7913602,1306.5,1306.3,10.0]
[1610294462128,19.7328317,1307.0,1306.3,10.0]
[1610294462327,19.7328317,1307.0,1306.2,2.3636]
[1610294462728,18.7938966,1306.3,1306.2,2.3636]
[1610294463127,18.7938966,1306.3,1306.1,10.0]
[1610294463529,18.7938966,1306.3,1306.2,10.0]
[1610294463929,18.7938966,1306.3,1306.0,10.0]
[1610294464129,4.00959,1306.4,1306.0,10.0]
[1610294464328,4.00959,1306.4,1305.6,12.0603]
[1610294464530,4.00959,1306.4,1305.7,10.0]
[1610294464731,18.80198,1305.8,1305.7,9.8602]
[1610294464929,18.80198,1305.8,1305.6,2.0603]
[1610294465331,22.8139606,1305.7,1305.2,63.6952]
[1610294465735,18.8052706,1305.6,1305.3,10.0]
[1610294465933,18.8089409,1305.5,1305.3,10.0]
[1610294466332,18.8089409,1305.5,1305.4,10.0]
[1610294466633,18.8089409,1305.5,1305.3,10.0]
[1610294467033,4.00959,1305.7,1305.4,10.0]
[1610294467236,4.00959,1305.5,1305.4,10.0]
[1610294467435,4.00959,1305.5,1305.3,10.0]
[1610294467633,22.8186866,1305.5,1305.3,10.0]
[1610294467833,22.8186866,1305.5,1305.4,10.0]
[1610294468035,4.00959,1305.5,1305.4,10.0]
[1610294468235,4.00959,1305.5,1305.2,63.6952]
[1610294468635,22.8187745,1305.5,1305.2,63.6952]
[1610294468936,4.00959,1305.5,1305.2,63.6952]
[1610294469136,4.00959,1305.5,1305.3,10.0]
[1610294469336,4.00959,1305.5,1305.3,14.00959]
[1610294469535,4.00959,1305.5,1305.4,10.0]
[1610294470435,18.8084625,1305.6,1305.4,10.0]
[1610294470837,18.8050281,1305.7,1305.5,10.0]
[1610294471037,18.8050281,1305.7,1305.4,12.0861]
[1610294471239,20.6850609,1307.8,1305.4,12.0861]
[1610294471240,18.8043816,1305.9,1305.6,4.00959]
[1610294471436,18.8001896,1306.0,1305.6,14.00959]
[1610294471638,18.8001896,1306.0,1305.6,4.00959]
[1610294471838,18.797402,1306.2,1305.7,10.0]
[1610294472138,18.797402,1306.2,1305.7,11.6829]
[1610294472340,18.7963319,1306.3,1305.8,10.0]
[1610294472739,18.7963319,1306.3,1305.9,10.0]
[1610294472942,19.7365416,1306.9,1305.9,10.0]
[1610294473142,19.7365416,1306.9,1305.8,10.0]
[1610294473342,18.7976314,1306.2,1305.9,4.00959]
[1610294473541,18.7976314,1306.2,1306.0,10.0]
[1610294473742,18.7976314,1306.2,1305.9,4.00959]
[1610294473942,18.7933833,1306.3,1306.1,12.4784]
[1610294474343,6.023,1308.7,1306.1,2.4784]
[1610294474344,18.7915724,1306.6,1306.1,2.4784]
[1610294474542,18.7915724,1306.6,1306.2,10.0]
[1610294474743,18.7904381,1306.8,1306.2,10.0]
[1610294474943,18.7904381,1306.8,1306.3,10.0]
[1610294475342,18.7904381,1306.8,1306.7,4.00959]
[1610294475742,18.7890753,1306.9,1306.7,14.00959]
[1610294475946,18.7890753,1306.9,1306.8,10.0]
[1610294477645,18.7890753,1306.9,1306.8,12.1756]
[1610294478044,4.00959,1307.2,1306.8,12.1756]
[1610294478447,4.00959,1307.2,1306.9,10.0]
[1610294478847,4.00959,1307.2,1307.0,10.0]
[1610294479247,4.00959,1307.2,1306.9,10.0]
[1610294479447,23.7411451,1307.2,1307.1,10.0]
[1610294479647,6.16309,1307.2,1307.1,10.0]
[1610294479848,6.16309,1307.2,1306.4,11.8212]
[1610294480048,6.16309,1307.2,1306.5,10.0]
[1610294480248,18.7915092,1306.6,1306.5,10.0]
[1610294480648,25.8939399,1307.2,1306.4,1.8212]
[1610294480849,25.8939399,1307.2,1306.5,10.0]
[1610294481251,25.8939399,1307.2,1306.6,10.0]
[1610294481252,19.7321257,1307.1,1306.6,10.0]
[1610294481652,19.7321257,1307.1,1306.5,10.0]
[1610294482052,19.7321257,1307.1,1306.6,10.0]
[1610294482452,19.7342808,1307.0,1306.5,10.0]
[1610294482654,19.7348545,1306.9,1305.5,55.0409]
[1610294482851,19.7348545,1306.9,1306.4,10.0]
[1610294483053,21.6825545,1306.9,1306.6,10.0]
[1610294483252,4.00959,1306.7,1305.7,1.9667]
[1610294483653,23.748135,1306.7,1305.7,1.9667]
[1610294484054,18.7987582,1306.1,1305.7,1.9667]
[1610294484654,23.748135,1306.7,1305.8,10.0]
[1610294484655,18.7969035,1306.3,1305.8,10.0]
[1610294485055,18.7969035,1306.3,1305.9,10.0]
[1610294485259,21.6842138,1306.9,1305.9,10.0]
[1610294485260,18.7959519,1306.4,1306.2,4.00959]
[1610294485456,18.7940942,1306.5,1306.2,34.00959]
[1610294485858,5.5039,1309.4,1306.2,34.00959]
[1610294485859,18.7902671,1306.7,1306.3,10.0]
[1610294486060,19.7295456,1307.3,1306.4,30.0]
[1610294486259,18.7856806,1307.1,1306.4,42.1515]
[1610294486660,18.7840279,1307.2,1306.5,10.0]
[1610294487061,18.7840279,1307.2,1306.6,10.0]
[1610294487263,22.7936179,1307.2,1307.0,4.00959]
[1610294487463,18.7850836,1307.1,1307.0,4.00959]
[1610294487663,18.7850836,1307.1,1307.0,5.92619]
[1610294487864,18.7850836,1307.1,1307.0,15.92619]
[1610294488166,18.7848433,1307.2,1307.0,15.92619]
[1610294488465,18.7848433,1307.2,1307.1,10.0]
[1610294489766,18.7833277,1307.3,1307.1,10.0]
[1610294489966,18.7833277,1307.3,1307.2,10.0]
[1610294490167,18.7833277,1307.3,1307.1,10.0]
[1610294490568,18.7833277,1307.3,1307.2,10.0]
[1610294490969,18.7824315,1307.4,1307.1,10.0]
[1610294491370,18.7824315,1307.4,1307.3,4.00959]
[1610294491570,18.7824315,1307.4,1307.3,5.76569]
[1610294491771,18.7824315,1307.4,1307.3,15.76569]
[1610294491973,4.00959,1307.8,1307.3,15.76569]
[1610294492373,4.00959,1307.8,1307.4,10.0]
[1610294492774,4.00959,1307.8,1307.5,10.0]
[1610294492976,4.00959,1307.8,1307.4,10.0]
[1610294493375,4.00959,1307.8,1307.7,4.00959]
[1610294493575,4.00959,1307.8,1307.3,1.7561]
[1610294493774,4.00959,1307.8,1307.7,10.0]
[1610294493976,4.00959,1307.8,1307.4,10.0]
[1610294494378,4.00959,1307.8,1307.5,10.0]
[1610294494577,1.551,1308.0,1307.5,10.0]
[1610294494776,19.7192922,1308.1,1307.4,10.0]
[1610294494978,21.6123608,1308.2,1307.3,1.7561]
[1610294495177,18.7780358,1307.7,1307.4,10.0]
[1610294495377,18.7780358,1307.7,1307.6,4.00959]
[1610294495579,1.5213,1308.7,1307.6,35.54969]
[1610294495580,18.7763702,1307.8,1307.6,35.54969]
[1610294495977,18.7735608,1307.9,1307.6,45.54969]
[1610294496378,18.7709201,1308.0,1307.7,10.0]
[1610294496579,18.7709201,1308.0,1307.8,30.0]
[1610294496777,18.7699166,1308.3,1307.8,40.0]
[1610294496977,18.7699166,1308.3,1307.9,10.0]